fUST/lending_fUST_20250601
["ID","MTS","AMOUNT","RATE_DAILY","PERIOD"]
[363556199,1748766650052,-1217.062212,0.0001726,2]
[363556200,1748766650062,-1217.062212,0.0001726,2]
[363556201,1748766650071,-151.0,0.0001726,2]
[363556202,1748766650081,-151.0,0.0001726,2]
[363556203,1748766650091,-345.298026,0.0001726,2]
[363556204,1748766650099,-345.298026,0.0001726,2]
[363556205,1748766650108,-312.66864403,0.0001726,2]
[363556206,1748766650116,-430.0,0.0001726,2]
[363556207,1748766650125,-272.859651,0.0001726,2]
[363556209,1748766650135,-430.0,0.0001726,2]
[363556210,1748766650144,-272.859651,0.0001726,2]
[363556212,1748766650154,-430.0,0.0001726,2]
[363556213,1748766650163,-430.0,0.0001726,2]
[363556214,1748766650173,-237.15131857,0.0001726,2]
[363556215,1748766650183,-430.0,0.0001726,2]
[363556217,1748766650192,-159.39929833,0.0001726,2]
[363556218,1748766650202,-430.0,0.0001726,2]
[363556219,1748766650211,-430.0,0.0001726,2]
[363556220,1748766650221,-430.0,0.0001726,2]
[363556221,1748766650231,-737.76,0.0001726,2]
[363556222,1748766650241,-643.35,0.0001726,2]
[363556223,1748766650251,-430.0,0.0001726,2]
[363556224,1748766650260,-1221.78,0.0001726,2]
[363556225,1748766650270,-430.0,0.0001726,2]
[363556226,1748766650280,-636.06,0.0001726,2]
[363556227,1748766650290,-430.0,0.0001726,2]
[363556228,1748766650300,-837.66,0.0001726,2]
[363556229,1748766650310,-430.0,0.0001726,2]
[363556230,1748766650320,-457.86,0.0001726,2]
[363556231,1748766650329,-464.24,0.0001726,2]
[363556232,1748766650338,-430.0,0.0001726,2]
[363556233,1748766650349,-430.0,0.0001726,2]
[363556234,1748766650358,-430.0,0.0001726,2]
[363556235,1748766650368,-430.0,0.0001726,2]
[363556236,1748766650379,-385.77129826,0.0001726,2]
[363556237,1748766650389,-430.0,0.0001726,2]
[363556238,1748766650399,-430.0,0.0001726,2]
[363556239,1748766650408,-430.0,0.0001726,2]
[363556240,1748766650418,-430.0,0.0001726,2]
[363556241,1748766650428,-430.0,0.0001726,2]
[363556242,1748766650437,-430.0,0.0001726,2]
[363556243,1748766650450,-675.77,0.0001726,2]
[363556244,1748766650460,-430.0,0.0001726,2]
[363556245,1748766650470,-430.0,0.0001726,2]
[363556246,1748766650480,-430.0,0.0001726,2]
[363556247,1748766650491,-430.0,0.0001726,2]
[363556248,1748766650501,-430.0,0.0001726,2]
[363556249,1748766650511,-430.0,0.0001726,2]
[363556250,1748766650521,-430.0,0.0001726,2]
[363556251,1748766650531,-430.0,0.0001726,2]
[363556252,1748766650540,-226.976908,0.0001726,2]
[363556253,1748766650550,-226.976908,0.0001726,2]
[363556254,1748766650560,-430.0,0.0001726,2]
[363556255,1748766650570,-430.0,0.0001726,2]
[363556256,1748766650579,-430.0,0.0001726,2]
[363556257,1748766650589,-430.0,0.0001726,2]
[363556258,1748766650599,-568.64,0.0001726,2]
[363556259,1748766650608,-430.0,0.0001726,2]
[363556260,1748766650617,-430.0,0.0001726,2]
[363556261,1748766650626,-430.0,0.0001726,2]
[363556262,1748766650635,-430.0,0.0001726,2]
[363556263,1748766650645,-756.62,0.0001726,2]
[363556264,1748766650654,-151.0,0.0001726,2]
[363556265,1748766650663,-430.0,0.0001726,2]
[363556266,1748766650673,-430.0,0.0001726,2]
[363556267,1748766650683,-430.0,0.0001726,2]
[363556268,1748766650692,-430.0,0.0001726,2]
[363556269,1748766650703,-430.0,0.0001726,2]
[363556270,1748766650713,-1231.91,0.0001726,2]
[363556271,1748766650723,-430.0,0.0001726,2]
[363556272,1748766650732,-430.0,0.0001726,2]
[363556273,1748766650742,-430.0,0.0001726,2]
[363556274,1748766650752,-440.47161281,0.0001726,2]
[363556275,1748766650762,-600.45,0.0001726,2]
[363556276,1748766650772,-430.0,0.0001726,2]
[363556277,1748766650782,-430.0,0.0001726,2]
[363556278,1748766650792,-430.0,0.0001726,2]
[363556279,1748766650802,-430.0,0.0001726,2]
[363556280,1748766650812,-270.81204356,0.0001726,2]
[363556281,1748766650821,-477.19,0.0001726,2]
[363556282,1748766650830,-16754.49,0.0001726,2]
[363556283,1748766650840,-430.0,0.0001726,2]
[363556284,1748766650850,-1435.85,0.0001726,2]
[363556285,1748766650860,-430.0,0.0001726,2]
[363556286,1748766650870,-430.0,0.0001726,2]
[363556287,1748766650880,-873.58,0.0001726,2]
[363556288,1748766650891,-1473.51,0.0001726,2]
[363556289,1748766650900,-440.35418715,0.0001726,2]
[363556290,1748766650910,-430.0,0.0001726,2]
[363556291,1748766650921,-363.7038849,0.0001726,2]
[363556292,1748766650931,-800.0,0.00017271,2]
[363556293,1748766650940,-151.0,0.00017273,2]
[363556294,1748766650950,-151.0,0.00017283,2]
[363556295,1748766650961,-151.0,0.00017283,2]
[363556296,1748766650970,-216.935745,0.00017283,2]
[363556297,1748766650980,-216.935745,0.00017283,2]
[363556298,1748766650990,-151.0,0.00017283,2]
[363556299,1748766651000,-151.0,0.00017283,2]
[363556300,1748766651010,-351.4500182,0.00017328,2]
[363556301,1748766651020,-1250.798495,0.0001733,2]
[363556302,1748766651029,-800.0,0.00017339,2]
[363556303,1748766651038,-32252.63766643,0.00017359,2]
[363556306,1748766697131,711.19372,0.00013699,2]
[363556307,1748766736489,157.42707702,6.8e-07,2]
[363556308,1748766736593,157.42707702,6.8e-07,2]
[363556309,1748766859194,193.340125,0.00015451,120]
[363556311,1748766899859,693.50609788,0.00024649,120]
[363556317,1748767008372,302.56,0.000246,120]
[363556318,1748767037215,157.42707701,6.8e-07,2]
[363556319,1748767037321,157.42707701,6.8e-07,2]
[363556320,1748767057865,10010.0,0.000245,120]
[363556321,1748767221886,7333.00235624,0.00014968,2]
[363556322,1748767221909,6748.48131766,0.00014968,2]
[363556326,1748767332330,-182.87753159,0.00015029,2]
[363556327,1748767338083,157.42707701,6.8e-07,2]
[363556328,1748767354340,288.6823654,0.00014854,2]
[363556330,1748767468721,3708.56713467,0.00015,2]
[363556331,1748767468746,266.13573228,0.00015,2]
[363556333,1748767513296,2744.77212885,0.00015,2]
[363556334,1748767530354,5000.0,0.00015,2]
[363556336,1748767546508,1737.22610589,0.00015,2]
[363556338,1748767591564,1155.02392772,0.00015,2]
[363556339,1748767591589,3341.40107228,0.00015,2]
[363556342,1748767625361,3478.0264172,0.00014919,2]
[363556343,1748767628118,-1065.20913316,0.00015029,2]
[363556344,1748767638279,1515.0,0.00024657,120]
[363556345,1748767638725,157.42707701,6.8e-07,2]
[363556346,1748767652123,-4158.00911545,0.00015029,2]
[363556347,1748767652146,-193.340125,0.00015451,2]
[363556348,1748767652172,-249.78312572,0.00015519,2]
[363556349,1748767652194,-422.91414031,0.0001552,2]
[363556350,1748767652217,-253.80103138,0.00015899,2]
[363556351,1748767652240,-211.45707016,0.00015945,2]
[363556352,1748767652264,-1200.0,0.00015996,2]
[363556353,1748767652287,-300.0,0.00015996,2]
[363556354,1748767652311,-300.0,0.00015996,2]
[363556355,1748767652333,-300.0,0.00015997,2]
[363556356,1748767652356,-300.0,0.00015997,2]
[363556357,1748767652378,-300.0,0.00015997,2]
[363556358,1748767652401,-300.0,0.00015997,2]
[363556359,1748767652424,-500.0,0.00015998,2]
[363556360,1748767652446,-500.0,0.00015998,2]
[363556361,1748767652471,-179.44883231,0.00015998,2]
[363556366,1748767764130,-647.47611781,0.00015024,2]
[363556370,1748767791357,709.213446,0.00013699,2]
[363556391,1748767832471,-75.97150859,0.00015024,2]
[363556392,1748767832483,-440.39754888,0.0001552,2]
[363556393,1748767832495,-5000.0,0.00015838,2]
[363556394,1748767832506,-1200.0,0.00015996,2]
[363556395,1748767832517,-300.0,0.00015997,2]
[363556396,1748767832529,-300.0,0.00015997,2]
[363556397,1748767832540,-300.0,0.00015997,2]
[363556398,1748767832551,-320.55116769,0.00015998,2]
[363556399,1748767832563,-500.0,0.00015998,2]
[363556400,1748767832574,-500.0,0.00015998,2]
[363556401,1748767832590,-569.51612198,0.00015998,2]
[363556402,1748767832602,-500.0,0.00015998,2]
[363556403,1748767832615,-395.51096173,0.00015998,2]
[363556404,1748767832627,-500.0,0.00015998,2]
[363556405,1748767832639,-203.26671536,0.00015998,2]
[363556406,1748767832651,-500.0,0.00015998,2]
[363556407,1748767832664,-500.0,0.00015998,2]
[363556408,1748767832677,-500.0,0.00015998,2]
[363556409,1748767832690,-479.23745557,0.00015998,2]
[363556410,1748767832703,-252.56490249,0.00015998,2]
[363556411,1748767832715,-500.0,0.00015998,2]
[363556412,1748767832728,-547.28062656,0.00015999,2]
[363556413,1748767832737,-618.97610384,0.00015999,2]
[363556414,1748767832747,-547.28062656,0.00015999,2]
[363556415,1748767832757,-547.28062656,0.00015999,2]
[363556416,1748767832767,-547.28062656,0.00015999,2]
[363556417,1748767832777,-547.28062656,0.00015999,2]
[363556418,1748767832787,-547.28062656,0.00015999,2]
[363556419,1748767833009,-547.28062656,0.00015999,2]
[363556420,1748767833026,-547.28062656,0.00015999,2]
[363556421,1748767833036,-547.28062656,0.00015999,2]
[363556422,1748767833047,-547.28062656,0.00015999,2]
[363556423,1748767833058,-547.28062656,0.00015999,2]
[363556424,1748767833068,-547.28062656,0.00015999,2]
[363556425,1748767833078,-547.28062656,0.00015999,2]
[363556426,1748767833088,-547.28062656,0.00015999,2]
[363556427,1748767833097,-547.28062656,0.00015999,2]
[363556428,1748767833108,-547.28062656,0.00015999,2]
[363556429,1748767833118,-547.28062656,0.00015999,2]
[363556430,1748767833128,-588.32667354,0.00015999,2]
[363556431,1748767833138,-588.32667354,0.00015999,2]
[363556432,1748767833148,-588.32667354,0.00015999,2]
[363556433,1748767833158,-588.32667354,0.00015999,2]
[363556434,1748767833168,-588.32667354,0.00015999,2]
[363556435,1748767833178,-172.43681725,0.00015999,2]
[363556462,1748767838100,-3116.08516973,0.00015837,2]
[363556463,1748767838109,-415.88985629,0.00015999,2]
[363556464,1748767838119,-588.32667354,0.00015999,2]
[363556465,1748767838129,-588.32667354,0.00015999,2]
[363556466,1748767838139,-588.32667354,0.00015999,2]
[363556467,1748767838148,-588.32667354,0.00015999,2]
[363556468,1748767838157,-588.32667354,0.00015999,2]
[363556469,1748767838166,-588.32667354,0.00015999,2]
[363556470,1748767838176,-64473.75140014,0.00016,3]
[363556471,1748767838185,-212.80060342,0.00016,3]
[363556472,1748767838194,-12666.87825251,0.00016,3]
[363556473,1748767838203,-500.0,0.00016,3]
[363556474,1748767838212,-429.48086478,0.00016,3]
[363556475,1748767838221,-255.0,0.000161,2]
[363556476,1748767838231,-164.53788797,0.00016101,2]
[363556477,1748767838240,-500.0,0.00016274,3]
[363556478,1748767838249,-152.0,0.00016277,2]
[363556479,1748767838259,-746.02536178,0.000163,2]
[363556480,1748767838268,-746.02536152,0.000163,2]
[363556481,1748767838277,-2170.28754311,0.00016338,2]
[363556482,1748767838286,-279.90501543,0.00016388,2]
[363556483,1748767838296,-156.43604141,0.00016388,2]
[363556484,1748767838305,-156.83037954,0.00016388,2]
[363556485,1748767838314,-153.92592484,0.00016388,2]
[363556486,1748767838324,-153.30659485,0.00016388,2]
[363556487,1748767838333,-151.6958839,0.00016388,2]
[363556489,1748767838343,-484.98,0.00016428,3]
[363556491,1748767838353,-1859.11,0.00016428,3]
[363556493,1748767838362,-929.55,0.00016428,3]
[363556495,1748767838373,-464.78,0.00016428,3]
[363556497,1748767838382,-232.39,0.00016428,3]
[363556499,1748767838392,-697.17,0.00016428,3]
[363556501,1748767838402,-160.0,0.00016437,2]
[363556503,1748767838411,-430.0,0.00016438,2]
[363556505,1748767838421,-430.0,0.00016438,2]
[363556507,1748767838429,-430.0,0.00016438,2]
[363556509,1748767838439,-430.0,0.00016438,2]
[363556511,1748767838449,-420.0,0.00016438,2]
[363556513,1748767838458,-405.47137417,0.00016438,2]
[363556515,1748767838467,-431.04987736,0.00016438,2]
[363556517,1748767838477,-430.0,0.00016438,2]
[363556519,1748767838486,-440.0,0.00016438,2]
[363556521,1748767838496,-430.0,0.00016438,2]
[363556523,1748767838506,-430.0,0.00016438,2]
[363556525,1748767838515,-300.0,0.00016438,2]
[363556527,1748767838525,-430.0,0.00016438,2]
[363556529,1748767838535,-430.0,0.00016438,2]
[363556531,1748767838544,-406.44319564,0.00016438,2]
[363556533,1748767838553,-430.0,0.00016438,2]
[363556535,1748767838563,-430.0,0.00016438,2]
[363556537,1748767838573,-430.0,0.00016438,2]
[363556539,1748767838582,-430.0,0.00016438,2]
[363556541,1748767838591,-430.0,0.00016438,2]
[363556543,1748767838601,-430.0,0.00016438,2]
[363556545,1748767838610,-405.20624908,0.00016438,2]
[363556547,1748767838620,-430.0,0.00016438,2]
[363556549,1748767838629,-505.315503,0.00016438,2]
[363556551,1748767838638,-430.0,0.00016438,2]
[363556553,1748767838647,-430.0,0.00016438,2]
[363556555,1748767838657,-160.19289032,0.00016438,2]
[363556558,1748767838670,-269.80710968,0.00016438,2]
[363556560,1748767838680,-430.0,0.00016438,2]
[363556562,1748767838689,-474.75318024,0.00016438,2]
[363556564,1748767838699,-430.0,0.00016438,2]
[363556566,1748767838709,-430.0,0.00016438,2]
[363556568,1748767838718,-430.0,0.00016438,2]
[363556570,1748767838728,-450.0,0.00016438,2]
[363556572,1748767838737,-510.8056346,0.00016438,2]
[363556574,1748767838746,-400.0,0.00016438,2]
[363556576,1748767838757,-430.0,0.00016438,2]
[363556578,1748767838766,-430.0,0.00016438,2]
[363556580,1748767838775,-235.77557032,0.00016438,2]
[363556582,1748767838785,-430.0,0.00016438,2]
[363556584,1748767838794,-434.70349535,0.00016438,2]
[363556586,1748767838803,-430.0,0.00016438,2]
[363556588,1748767838814,-430.0,0.00016438,2]
[363556590,1748767838824,-400.0,0.00016438,2]
[363556592,1748767838833,-430.0,0.00016438,2]
[363556594,1748767838842,-430.0,0.00016438,2]
[363556596,1748767838852,-430.0,0.00016438,2]
[363556598,1748767838861,-363.17553011,0.00016438,2]
[363556600,1748767838871,-430.0,0.00016438,2]
[363556602,1748767838880,-430.0,0.00016438,2]
[363556604,1748767838891,-526.08000274,0.00016438,2]
[363556606,1748767838902,-430.0,0.00016438,2]
[363556608,1748767838911,-159.71134693,0.00016438,2]
[363556610,1748767838920,-405.4862229,0.00016438,2]
[363556612,1748767838930,-412.37489737,0.00016438,2]
[363556614,1748767838939,-430.0,0.00016438,2]
[363556616,1748767838948,-430.0,0.00016438,2]
[363556618,1748767838962,-430.0,0.00016438,2]
[363556620,1748767838971,-430.0,0.00016438,2]
[363556622,1748767838980,-430.0,0.00016438,2]
[363556624,1748767838990,-497.35824121,0.00016438,2]
[363556626,1748767838999,-430.0,0.00016438,2]
[363556628,1748767839008,-430.45588041,0.00016438,2]
[363556631,1748767839019,-430.0,0.00016438,2]
[363556633,1748767839027,-430.0,0.00016438,2]
[363556634,1748767839037,-619.17,0.00016438,2]
[363556637,1748767839046,-430.0,0.00016438,2]
[363556639,1748767839056,-425.73625636,0.00016438,2]
[363556641,1748767839065,-430.0,0.00016438,2]
[363556643,1748767839074,-430.0,0.00016438,2]
[363556645,1748767839084,-439.96448648,0.00016438,2]
[363556647,1748767839093,-430.0,0.00016438,2]
[363556649,1748767839103,-430.0,0.00016438,2]
[363556651,1748767839112,-430.0,0.00016438,2]
[363556653,1748767839122,-350.08913176,0.00016438,2]
[363556655,1748767839132,-430.0,0.00016438,2]
[363556657,1748767839142,-371.44406114,0.00016438,2]
[363556659,1748767839152,-430.64991782,0.00016438,2]
[363556661,1748767839163,-430.0,0.00016438,2]
[363556663,1748767839180,-430.0,0.00016438,2]
[363556665,1748767839189,-430.0,0.00016438,2]
[363556667,1748767839198,-353.88630268,0.00016438,2]
[363556669,1748767839208,-430.0,0.00016438,2]
[363556671,1748767839218,-430.0,0.00016438,2]
[363556673,1748767839227,-430.0,0.00016438,2]
[363556675,1748767839237,-307.91795095,0.00016438,2]
[363556677,1748767839247,-430.0,0.00016438,2]
[363556679,1748767839256,-318.98733799,0.00016438,2]
[363556681,1748767839266,-430.0,0.00016438,2]
[363556683,1748767839275,-430.0,0.00016438,2]
[363556685,1748767839285,-430.0,0.00016438,2]
[363556687,1748767839296,-430.0,0.00016438,2]
[363556689,1748767839306,-430.0,0.00016438,2]
[363556691,1748767839316,-183.62460969,0.00016438,2]
[363556693,1748767839325,-430.0,0.00016438,2]
[363556695,1748767839335,-430.0,0.00016438,2]
[363556697,1748767839344,-430.0,0.00016438,2]
[363556699,1748767839354,-430.0,0.00016438,2]
[363556701,1748767839364,-430.0,0.00016438,2]
[363556703,1748767839375,-430.0,0.00016438,2]
[363556705,1748767839385,-430.0,0.00016438,2]
[363556707,1748767839394,-281.45044857,0.00016438,2]
[363556709,1748767839404,-430.0,0.00016438,2]
[363556712,1748767839414,-438.51435917,0.00016438,2]
[363556713,1748767839423,-430.0,0.00016438,2]
[363556716,1748767839433,-430.0,0.00016438,2]
[363556718,1748767839442,-210.04088016,0.00016438,2]
[363556720,1748767839452,-430.0,0.00016438,2]
[363556722,1748767839461,-430.0,0.00016438,2]
[363556724,1748767839470,-430.0,0.00016438,2]
[363556726,1748767839480,-564.22081151,0.00016438,2]
[363556728,1748767839489,-500.0,0.00016438,2]
[363556730,1748767839499,-151.0,0.00016438,2]
[363556732,1748767839509,-430.0,0.00016438,2]
[363556734,1748767839519,-481.23825487,0.00016438,2]
[363556736,1748767839528,-430.0,0.00016438,2]
[363556738,1748767839537,-430.0,0.00016438,2]
[363556740,1748767839548,-430.0,0.00016438,2]
[363556742,1748767839558,-430.0,0.00016438,2]
[363556744,1748767839568,-430.0,0.00016438,2]
[363556746,1748767839577,-500.0,0.00016438,2]
[363556748,1748767839587,-500.0,0.00016438,2]
[363556750,1748767839597,-233.98697092,0.00016438,2]
[363556752,1748767839607,-430.0,0.00016438,2]
[363556756,1748767839617,-430.0,0.00016438,2]
[363556758,1748767839626,-500.0,0.00016438,2]
[363556760,1748767839635,-430.0,0.00016438,2]
[363556762,1748767839644,-430.0,0.00016438,2]
[363556764,1748767839654,-400.0,0.00016438,2]
[363556766,1748767839663,-473.17,0.00016438,2]
[363556768,1748767839673,-430.0,0.00016438,2]
[363556770,1748767839684,-430.0,0.00016438,2]
[363556772,1748767839693,-430.0,0.00016438,2]
[363556774,1748767839703,-430.0,0.00016438,2]
[363556776,1748767839712,-430.0,0.00016438,2]
[363556778,1748767839721,-430.0,0.00016438,2]
[363556780,1748767839731,-430.0,0.00016438,2]
[363556782,1748767839740,-430.0,0.00016438,2]
[363556784,1748767839750,-430.0,0.00016438,2]
[363556786,1748767839760,-430.0,0.00016438,2]
[363556788,1748767839769,-430.0,0.00016438,2]
[363556791,1748767839779,-430.0,0.00016438,2]
[363556792,1748767839789,-430.0,0.00016438,2]
[363556795,1748767839798,-430.0,0.00016438,2]
[363556797,1748767839808,-430.0,0.00016438,2]
[363556799,1748767839818,-430.0,0.00016438,2]
[363556801,1748767839828,-430.0,0.00016438,2]
[363556803,1748767839838,-522.03109554,0.00016438,2]
[363556805,1748767839847,-430.0,0.00016438,2]
[363556807,1748767839856,-430.0,0.00016438,2]
[363556809,1748767839867,-430.0,0.00016438,2]
[363556811,1748767839878,-430.0,0.00016438,2]
[363556813,1748767839888,-227.24096104,0.00016438,2]
[363556815,1748767839898,-430.0,0.00016438,2]
[363556817,1748767839910,-430.0,0.00016438,2]
[363556819,1748767839920,-430.0,0.00016438,2]
[363556821,1748767839930,-430.0,0.00016438,2]
[363556823,1748767839940,-430.0,0.00016438,2]
[363556825,1748767839953,-430.0,0.00016438,2]
[363556827,1748767839973,-430.0,0.00016438,2]
[363556829,1748767839982,-436.48722184,0.00016438,2]
[363556831,1748767839992,-500.0,0.00016438,2]
[363556833,1748767840002,-500.0,0.00016438,2]
[363556835,1748767840021,-574.1,0.00016438,2]
[363556837,1748767840031,-430.0,0.00016438,2]
[363556839,1748767840042,-430.0,0.00016438,2]
[363556841,1748767840051,-430.0,0.00016438,2]
[363556843,1748767840062,-430.0,0.00016438,2]
[363556845,1748767840071,-430.0,0.00016438,2]
[363556847,1748767840081,-556.00547333,0.00016438,2]
[363556849,1748767840091,-430.0,0.00016438,2]
[363556851,1748767840100,-467.41679202,0.00016438,2]
[363556853,1748767840110,-414.46421793,0.00016438,2]
[363556856,1748767840122,-430.0,0.00016438,2]
[363556858,1748767840132,-430.87526326,0.00016438,2]
[363556860,1748767840142,-430.0,0.00016438,2]
[363556862,1748767840151,-430.0,0.00016438,2]
[363556864,1748767840162,-430.0,0.00016438,2]
[363556866,1748767840171,-561.23062031,0.00016438,2]
[363556868,1748767840181,-430.0,0.00016438,2]
[363556870,1748767840191,-430.0,0.00016438,2]
[363556872,1748767840201,-430.81597024,0.00016438,2]
[363556874,1748767840210,-430.0,0.00016438,2]
[363556876,1748767840220,-316.32705389,0.00016438,2]
[363556878,1748767840231,-416.33006213,0.00016438,2]
[363556880,1748767840241,-430.0,0.00016438,2]
[363556882,1748767840252,-430.0,0.00016438,2]
[363556884,1748767840262,-430.0,0.00016438,2]
[363556886,1748767840272,-430.0,0.00016438,2]
[363556888,1748767840282,-459.237595,0.00016438,2]
[363556890,1748767840292,-430.0,0.00016438,2]
[363556892,1748767840302,-433.78185387,0.00016438,2]
[363556894,1748767840312,-430.0,0.00016438,2]
[363556896,1748767840322,-430.0,0.00016438,2]
[363556898,1748767840331,-380.95988465,0.00016438,2]
[363556900,1748767840341,-430.0,0.00016438,2]
[363556902,1748767840350,-430.0,0.00016438,2]
[363556904,1748767840360,-430.0,0.00016438,2]
[363556906,1748767840371,-359.06615995,0.00016438,2]
[363556908,1748767840381,-430.0,0.00016438,2]
[363556910,1748767840391,-430.0,0.00016438,2]
[363556912,1748767840400,-430.0,0.00016438,2]
[363556914,1748767840410,-430.0,0.00016438,2]
[363556916,1748767840419,-430.0,0.00016438,2]
[363556918,1748767840429,-430.0,0.00016438,2]
[363556920,1748767840439,-430.0,0.00016438,2]
[363556922,1748767840448,-430.0,0.00016438,2]
[363556924,1748767840458,-430.0,0.00016438,2]
[363556926,1748767840468,-430.0,0.00016438,2]
[363556928,1748767840478,-430.0,0.00016438,2]
[363556930,1748767840488,-430.0,0.00016438,2]
[363556932,1748767840498,-276.66607458,0.00016438,2]
[363556934,1748767840508,-430.0,0.00016438,2]
[363556936,1748767840518,-430.0,0.00016438,2]
[363556938,1748767840527,-430.0,0.00016438,2]
[363556940,1748767840537,-430.0,0.00016438,2]
[363556942,1748767840548,-286.617797,0.00016438,2]
[363556944,1748767840558,-430.0,0.00016438,2]
[363556946,1748767840567,-500.0,0.00016438,2]
[363556948,1748767840577,-500.0,0.00016438,2]
[363556950,1748767840587,-430.0,0.00016438,2]
[363556952,1748767840596,-430.0,0.00016438,2]
[363556954,1748767840606,-430.0,0.00016438,2]
[363556956,1748767840615,-430.0,0.00016438,2]
[363556958,1748767840625,-430.0,0.00016438,2]
[363556960,1748767840635,-430.0,0.00016438,2]
[363556962,1748767840645,-430.0,0.00016438,2]
[363556964,1748767840655,-430.0,0.00016438,2]
[363556966,1748767840664,-430.0,0.00016438,2]
[363556967,1748767840674,-430.0,0.00016438,2]
[363556969,1748767840683,-430.0,0.00016438,2]
[363556971,1748767840693,-430.0,0.00016438,2]
[363556972,1748767840702,-430.0,0.00016438,2]
[363556974,1748767840713,-430.0,0.00016438,2]
[363556976,1748767840722,-407.59634751,0.00016438,2]
[363556978,1748767840733,-430.0,0.00016438,2]
[363556980,1748767840742,-430.0,0.00016438,2]
[363556981,1748767840752,-430.0,0.00016438,2]
[363556983,1748767840761,-262.33555041,0.00016438,2]
[363556985,1748767840770,-430.0,0.00016438,2]
[363556987,1748767840779,-430.0,0.00016438,2]
[363556999,1748767840912,-284.78389438,0.00016438,2]
[363557001,1748767840925,-430.0,0.00016438,2]
[363557003,1748767840935,-423.70980898,0.00016438,2]
[363557005,1748767840945,-430.0,0.00016438,2]
[363557007,1748767840957,-430.0,0.00016438,2]
[363557008,1748767840966,-430.0,0.00016438,2]
[363557010,1748767840976,-430.0,0.00016438,2]
[363557012,1748767840986,-430.0,0.00016438,2]
[363557014,1748767840996,-430.0,0.00016438,2]
[363557016,1748767841005,-434.74176524,0.00016438,2]
[363557017,1748767841014,-1024.89975299,0.00016438,2]
[363557019,1748767841024,-430.0,0.00016438,2]
[363557021,1748767841036,-430.0,0.00016438,2]
[363557023,1748767841046,-430.0,0.00016438,2]
[363557025,1748767841056,-430.0,0.00016438,2]
[363557027,1748767841065,-430.0,0.00016438,2]
[363557028,1748767841074,-432.79574424,0.00016438,2]
[363557030,1748767841084,-430.0,0.00016438,2]
[363557032,1748767841093,-430.0,0.00016438,2]
[363557033,1748767841102,-430.0,0.00016438,2]
[363557035,1748767841111,-430.90984369,0.00016438,2]
[363557037,1748767841122,-437.08235146,0.00016438,2]
[363557039,1748767841131,-430.0,0.00016438,2]
[363557041,1748767841141,-301.32491024,0.00016438,2]
[363557043,1748767841150,-430.0,0.00016438,2]
[363557044,1748767841160,-430.0,0.00016438,2]
[363557046,1748767841170,-430.0,0.00016438,2]
[363557048,1748767841180,-430.0,0.00016438,2]
[363557050,1748767841189,-430.0,0.00016438,2]
[363557052,1748767841199,-430.0,0.00016438,2]
[363557053,1748767841209,-748.55,0.00016438,2]
[363557055,1748767841218,-431.6370925,0.00016438,2]
[363557057,1748767841228,-430.0,0.00016438,2]
[363557059,1748767841238,-570.0,0.00016438,2]
[363557061,1748767841249,-400.0,0.00016438,2]
[363557063,1748767841258,-430.0,0.00016438,2]